Cogmind - Beta 13 @@@ ROGUE MODE // 2024.04.02 @ 20:55:52 Player: engineer Result: Destroyed by H-61 Shepherd with Heavy Assault Cannon Performance ------------- Evolutions (2) 1000 Regions Visited (3) 600 Robots Destroyed (25) 125 Value Destroyed (643) 643 Prototype IDs (0) 0 Alien Tech Used (0) 0 Bonus (0) 0 TOTAL SCORE: 2368 Bonus ------- None Cogmind --------- Core Integrity 0/550 Matter 227/300 Energy 99/100 System Corruption 0% Temperature Cool (0) Movement Core (200) Ox3 Location -8/Materials Parts ------- > --- POWER (2) -------- (None) > --- PROPULSION (3) --- (None) > --- UTILITY (4) ------ Medium Storage Unit Propulsion Shielding Hacking Suite Hacking Suite > --- WEAPON (2) ------- (None) > --- INVENTORY (10) --- Sensor Array Improved Signal Interpreter ECM Suite Light Cannon Peak State ------------ > --- POWER ------------ Light Ion Engine Light Nuclear Core > --- PROPULSION ------- Airjet Airjet Airjet > --- UTILITY ---------- Medium Storage Unit Propulsion Shielding Hacking Suite Hacking Suite > --- WEAPON ----------- Improved Light Cannon Grenade Launcher > --- INVENTORY -------- Sensor Array Improved Signal Interpreter ECM Suite Shotgun Light Cannon Improved Light Cannon [Rating: 25] Favorites ----------- Power Ion Engine Engine Ion Engine Power Core Light Nuclear Core Propulsion Wheel Treads Light Treads Leg Aluminum Leg Wheel Wheel Hover Unit Airjet Utility Medium Storage Unit Storage Medium Storage Unit Hackware Hacking Suite Protection Light Armor Plating Weapon Light Assault Rifle Ballistic Gun Light Assault Rifle Ballistic Cannon Light Cannon Launcher Grenade Launcher Build | -11 -10 -9 -8 ------- Run | Yrd Mat Mat Mat Slots Evolved 4 | . . 2 2 Power 1 | . . . 1 Propulsion 1 | . . 1 . Utility 2 | . . 1 1 Weapon . | . . . . Parts Attached 37 | 7 5 11 14 Power 7 | 2 . . 5 Engine 4 | 2 . . 2 Core 3 | . . . 3 Reactor . | . . . . Propulsion 10 | 2 . 7 1 Treads 2 | . . 2 . Leg 2 | . . 2 . Wheel 3 | 2 . . 1 Hover 3 | . . 3 . Flight . | . . . . Utility 6 | 1 2 2 1 Device . | . . . . Storage 2 | 1 1 . . Processor . | . . . . Hackware 2 | . . 2 . Protection 2 | . 1 . 1 Artifact . | . . . . Weapon 14 | 2 3 2 7 Energy Gun . | . . . . Energy Cannon . | . . . . Ballistic Gun 5 | 2 1 1 1 Ballistic Cannon 5 | . 1 . 4 Launcher 4 | . 1 1 2 Special Weapon . | . . . . Impact Weapon . | . . . . Slashing Weapon . | . . . . Piercing Weapon . | . . . . Special Melee Weapon . | . . . . Unidentified Prototypes . | . . . . Parts Lost 17 | . . 4 13 Power 6 | . . 1 5 Propulsion 6 | . . 2 4 Utility 1 | . . 1 . Weapon 4 | . . . 4 Highest Loss Streak 8 | . . 3 8 To Critical Strikes . | . . . . Average Slot Usage (%) 85 | . 95 72 74 Engine 11 | . 14 11 3 Leg 3 | . . 10 . Wheel 17 | . 28 5 . Hover 3 | . . 3 14 Storage 12 | . 14 11 9 Hackware 4 | . . 5 18 Protection 7 | . 9 2 9 Ballistic Gun 15 | . 18 12 4 Ballistic Cannon 6 | . 8 1 9 Launcher 2 | . . 7 2 Naked Turns . | . . . . Heaviest Build 27 | 12 22 22 27 Greatest Support 40 | 20 20 40 24 Greatest Overweight (x) 6 | . 1 6 6 Average Overweight (x) . | . . . . Largest Inventory Capacity 10 | 8 10 10 10 Average Capacity 9 | 7 8 10 10 Most Carried 8 | 2 8 8 7 Average Carried 6 | 1 6 7 4 Final Capacity 10 | 8 10 10 10 Final Carried 8 | 2 7 8 4 Class Distribution -------------------- 81% | Mutant 18% | Hacker-Mutant Dominant Class ---------------- Mutant | -10/Materials Mutant | -9/Materials Hacker-Mutant | -8/Materials Resources | -11 -10 -9 -8 ----------- Run | Yrd Mat Mat Mat Matter Collected 886 | 254 249 139 244 Remotely . | . . . . Salvage Created 563 | . 174 208 181 Parts 56 | . 15 23 18 Haulers Intercepted . | . . . . Recyclers Shooed . | . . . . Parts Field Recycled . | . . . . Retrieved Matter . | . . . . Parts Self-Destructed . | . . . . Prevented . | . . . . Kills | -11 -10 -9 -8 ------- Run | Yrd Mat Mat Mat Combat Hostiles Destroyed 15 | . 5 4 6 Guns 5 | . 2 3 . Cannons 3 | . 2 . 1 AOE 7 | . 1 1 5 Classes Destroyed 8 | . 2 3 3 Worker 3 | . . 1 2 Builder 1 | . . . 1 Recycler 1 | . . . 1 Operator 2 | . . 1 1 Watcher 3 | . 2 1 . Swarmer 4 | . . . 4 Grunt 8 | . 5 1 2 Sentry 3 | . . 3 . Best Kill Streak 5 | . 3 2 5 Combat Bots Only 4 | . 3 2 4 Max Kills in Single Turn 4 | . 1 2 4 Gunslinging . | . . . . Exploded 4 | . 1 1 4 Melee . | . . . . Uniques/NPCs Destroyed . | . . . . Combat | -11 -10 -9 -8 -------- Run | Yrd Mat Mat Mat Hostile Shots Fired 201 | . 19 56 126 Missed 60 | . 7 14 39 Damage Taken 2193 | . 163 595 1435 Core 720 | . 45 116 559 Absorbed by Shields . | . . . . Redirected to Shielding 45 | . . . 45 Core Remaining (%) 84 | 100 82 71 . Volleys Fired 53 | . 17 20 16 Largest 2 | . 2 2 2 Hottest 78 | . 55 55 78 Shots Fired 101 | . 34 40 27 Gun 61 | . 22 35 4 Cannon 26 | . 9 1 16 Launcher 14 | . 3 4 7 Special . | . . . . Kinetic 87 | . 31 36 20 Thermal . | . . . . Explosive 14 | . 3 4 7 Electromagnetic . | . . . . Robot Hit Streak 9 | . 8 9 4 Robot Miss Streak 3 | . 2 2 3 Penetration Max . | . . . . Secondary Targets . | . . . . Shots Hit Robots 58 | . 22 23 13 Core Hits 45 | . 13 16 16 Critical Kills . | . . . . Critical Parts Destroyed . | . . . . Critical Strikes . | . . . . Melee Attacks . | . . . . Impact . | . . . . Slashing . | . . . . Piercing . | . . . . Sneak Attacks . | . . . . Combat Hostiles . | . . . . Follow-up Attacks . | . . . . Damage Inflicted 1528 | . 357 567 604 Guns 489 | . 121 299 69 Cannons 233 | . 86 . 147 Explosions 806 | . 150 268 388 Melee . | . . . . Ramming . | . . . . Kinetic 722 | . 207 299 216 Thermal . | . . . . Explosive 806 | . 150 268 388 Electromagnetic . | . . . . Impact . | . . . . Slashing . | . . . . Piercing . | . . . . Highest Corruption . | . . . . Average Corruption . | . . . . Corruption Purged . | . . . . Corruption Blocked . | . . . . Overload Shots . | . . . . Overflow Damage 20 | . . 10 10 Projectiles . | . . . . Explosions 20 | . . 10 10 Melee . | . . . . Knockbacks 3 | . 1 . 2 Impact . | . . . . Kinetic 3 | . 1 . 2 Secondary . | . . . . Self-Inflicted Damage 30 | . . 17 13 Shots 3 | . . 2 1 Rammed . | . . . . Targets Rammed . | . . . . Kicked . | . . . . Crushed . | . . . . Highest Temperature 76 | . 64 58 76 Average Temperature 22 | . 19 17 28 Received Heat Transfer 903 | . 114 267 522 Siege Activations . | . . . . Robots Corrupted . | . . . . Combat Hostiles . | . . . . Parts Fried . | . . . . Impact Corruptions . | . . . . Robots Melted . | . . . . Combat Hostiles . | . . . . Parts Melted . | . . . . Heat Transferred . | . . . . Parts Sabotaged . | . . . . Parts Stolen . | . . . . Parts Stripped . | . . . . Power Chain Reactions . | . . . . Alert | -11 -10 -9 -8 ------- Run | Yrd Mat Mat Mat Peak Influence 385 | . 115 296 385 Initial 120 | . . 48 120 Average 120 | . 65 162 296 Maximum Alert Level 1 | . . 1 1 Low Security (%) 86 | 100 100 91 18 Level 1 13 | . . 8 81 Level 2 . | . . . . Level 3 . | . . . . Level 4 . | . . . . Level 5 . | . . . . High Security . | . . . . Max Security . | . . . . Squads Dispatched 5 | . 2 2 1 Investigation 3 | . 2 1 . Extermination . | . . . . Reinforcement 2 | . . 1 1 Assault . | . . . . Garrison . | . . . . Intercept . | . . . . Searches Triggered . | . . . . Construction Impeded . | . . . . Haulers Reinforced . | . . . . Active Scanning Responses . | . . . . Cargo Convoy Interrupts . | . . . . Stealth | -11 -10 -9 -8 --------- Run | Yrd Mat Mat Mat Distress Signals 3 | . . 2 1 Communications Jammed . | . . . . Distress Signals . | . . . . Times Spotted 43 | . 9 12 22 Peak Tracking Total 12 | . 3 8 12 Tactical Retreats 1 | . . . 1 Traps | -11 -10 -9 -8 ------- Run | Yrd Mat Mat Mat Traps Triggered 1 | . 1 . . Indirectly . | . . . . Trap Hack Attempts . | . . . . Triggered . | . . . . Disarmed . | . . . . Reprogrammed . | . . . . Reused . | . . . . Traps Extracted . | . . . . Installed . | . . . . Triggered . | . . . . Machines | -11 -10 -9 -8 ---------- Run | Yrd Mat Mat Mat Machines Disabled 6 | . . 3 3 Max in Single Turn 2 | . . 1 2 Machines Repaired . | . . . . Machines Dismantled . | . . . . Machines Sabotaged . | . . . . Overloaded Fab Kills . | . . . . Hacking | -11 -10 -9 -8 --------- Run | Yrd Mat Mat Mat Machines Accessed 11 | . 8 2 1 Terminals 10 | . 7 2 1 Fabricators . | . . . . Repair Stations . | . . . . Recycling Units 1 | . 1 . . Scanalyzers . | . . . . Garrison Access . | . . . . Total Hacks 36 | . 21 7 8 Successful 18 | . 10 3 5 Failed 18 | . 11 4 3 Catastrophic 4 | . 3 1 . Database Lockouts . | . . . . Manual 10 | . 4 2 4 Terminals 32 | . 17 7 8 Fabricators . | . . . . Repair Stations . | . . . . Recycling Units 4 | . 4 . . Scanalyzers . | . . . . Garrison Access . | . . . . Terminal Hacks 15 | . 7 3 5 Record 4 | . . 1 3 Branch Access Points 1 | . 1 . . Emergency Access Points 1 | . 1 . . Terminal Index 2 | . 1 . 1 Dispatch Records 4 | . 1 2 1 Surveillance Status 1 | . 1 . . Investigation Status 1 | . 1 . . Hauler Manifests 1 | . 1 . . Fabricator Hacks . | . . . . Repair Station Hacks . | . . . . Recycling Unit Hacks 3 | . 3 . . Recycle Component 1 | . 1 . . Process 1 | . 1 . . Report Inventory 1 | . 1 . . Scanalyzer . | . . . . Garrison Access Hacks . | . . . . Unauthorized Hacks . | . . . . Terminals . | . . . . Fabricators . | . . . . Repair Stations . | . . . . Recycling Units . | . . . . Scanalyzers . | . . . . Garrison Access . | . . . . Data Cores Recovered . | . . . . Used . | . . . . Hacking Detections 11 | . 8 2 1 Full Trace Events 3 | . 1 2 . Feedback Events . | . . . . Feedback Blocked . | . . . . Robot Schematics Acquired . | . . . . Robots Built . | . . . . Authchips . | . . . . Time . | . . . . Total Robot Build Rating . | . . . . Part Schematics Acquired . | . . . . Parts Built . | . . . . Authchips . | . . . . Time . | . . . . Total Part Build Rating . | . . . . Parts Repaired . | . . . . Time . | . . . . Parts Recycled 1 | . 1 . . Recycled Matter 79 | . 79 . . Retrieved Matter . | . . . . Retrieved Components . | . . . . Parts Scanalyzed . | . . . . Part Schematics Acquired . | . . . . Parts Damaged . | . . . . Bothacking | -11 -10 -9 -8 ------------ Run | Yrd Mat Mat Mat Used RIF Installer . | . . . . Robots Hacked . | . . . . Non-combat . | . . . . Combat . | . . . . Robot Hacks Applied . | . . . . Relay Couplers Released . | . . . . Fabnet Peak Effective % . | . . . . Robots Rewired . | . . . . Allies Hacked . | . . . . Hacks Repelled . | . . . . Allies | -11 -10 -9 -8 -------- Run | Yrd Mat Mat Mat Total Allies . | . . . . Largest Group . | . . . . Highest-Rated Group . | . . . . Highest-Rated Ally . | . . . . Total Orders . | . . . . Ally Attacks . | . . . . Total Damage . | . . . . Kills . | . . . . Allies Corrupted . | . . . . Allies Melted . | . . . . Intel | -11 -10 -9 -8 ------- Run | Yrd Mat Mat Mat Robot Analysis Total . | . . . . Derelict Logs Recovered . | . . . . Drone Launches . | . . . . Drone Recoveries . | . . . . Exploration | -11 -10 -9 -8 ------------- Run | Yrd Mat Mat Mat Turns Passed 1389 | 57 756 390 186 Spaces Moved 1205 | 57 793 241 114 Core 11 | 1 . 4 6 Treads 4 | . . 4 . Legs 97 | . . 97 . Wheels 938 | 56 793 70 19 Hover 155 | . . 66 89 Flight . | . . . . Fastest Speed 50 | 50 80 52 52 Average Speed 95 | 79 85 127 106 Slowest Speed 350 | 80 95 350 350 Overloaded Moves . | . . . . Propulsion Burnouts . | . . . . Robots Hopped . | . . . . Cave-ins Triggered . | . . . . Exploration Rate (%) 33 | 3 94 19 19 Regions Visited 3 Branch Regions . Pre-discovered Areas . | . . . . Known Exits Taken . | . . . . Unknown Exits Taken 3 | 1 1 1 . Scrap Searched . | . . . . Spaces Dug 5 | . . 5 . Terrain Destroyed 109 | . 20 18 71 Melee . | . . . . Projectile 3 | . . . 3 AOE 106 | . 20 18 68 Terrain Rammed . | . . . . Walls Destroyed . | . . . . Machines Disabled . | . . . . Actions | -11 -10 -9 -8 --------- Run | Yrd Mat Mat Mat Total 1337 | 64 840 281 152 Wait 17 | . 12 5 . Move 1202 | 56 792 240 114 Hop . | . . . . Pick Up 15 | 1 10 1 3 Fast Attach 21 | 6 1 9 5 Attach 7 | . 1 . 6 Detach 2 | . . . 2 Swap 9 | 1 3 2 3 Drop 11 | . 4 4 3 Fire 53 | . 17 20 16 Melee . | . . . . Ram . | . . . . Kick . | . . . . Crush . | . . . . Escape Stasis . | . . . . Rewire . | . . . . Trap . | . . . . Miscellaneous . | . . . . Route ------- -11/Scrapyard -10/Materials (discovered 4 exits: *Mat x3 / *Min) -9/Materials -8/Materials History --------- Turn | Location | Event 25 | -11/Scrapyard | Discovered new exit (range 14) 58 | -11/Scrapyard | Entered Materials 194 | -10/Materials | Discovered new exit (range 6) 306 | -10/Materials | Build established: Mutant 402 | -10/Materials | Discovered new exit (range 14) 615 | -10/Materials | Identified exit to Mines 692 | -10/Materials | Discovered new exit (range 5) 774 | -10/Materials | Discovered new exit (range 4) 814 | -10/Materials | Entered another Materials area 814 | -9/Materials | Evolved 2 slots: Propulsion x1, Utility x1 958 | -9/Materials | Lost 3 parts (2n1u) 1191 | -9/Materials | Discovered new exit (range 10) 1204 | -9/Materials | Entered another Materials area 1204 | -8/Materials | Evolved 2 slots: Power x1, Utility x1 1311 | -8/Materials | Lost 5 parts (2p1n2w) 1380 | -8/Materials | Core integrity fell below 50% 1384 | -8/Materials | Core integrity fell below 20% 1390 | -8/Materials | Destroyed by H-61 Shepherd with Heavy Assault Cannon Last Messages --------------- 01350_ ALERT: Suspicious intruders detected, dispatching Specialist reinforcements to area. 01352_ Acquired Com. Wheel. 01363_ Airjet destroyed. 01365_ Penetrated by Slug. 01367_ Slug penetrates Wall. 01370_ Penetrated by Slug. 01371_ Y-45 Defender destroyed. 01372_ Acquired Lgt. Nuclear Core. 01373_ Imp. Light Cannon destroyed. 01374_ Penetrated by Slug. 01375_ Acquired Lgt. Nuclear Core. 01377_ Penetrated by Slug. 01377_ Shotgun destroyed. 01377_ Critical hit (Burn: +37). 01377_ Penetrated by Slug. 01377_ Com. Wheel destroyed. 01379_ Lgt. Nuclear Core destroyed. 01381_ Critical hit (Burn: +37). 01383_ Slug penetrates Wall. Map ----- +----------------------------------------------------+ | ???????# ! =$% ########? | | ???????# # ### ########???????? | | ???????# # # ###= [ #?????????????? | | ???????# = # # # = [#?????????????? | | ???????# "# # +== ##????????????? | | ???????#######/"## # !] # #????????????? | | ?########## # ]] # ##????????????? | | + # #% #?????????????? | | ?####### # # #?????????????? | | ???????# #### #### # ! # ##?????????????? | | ???????#+####+#### # # #??????????????? | | ???????# # # # #??????????????? | | ???????# ! +! # # #??????????????? | | ???????# # # # +??????????????? | | ???????# #!=%######## #??????????????? | | ??????############%* ##?????# #??????????????? | | ??????# [ #[![ #?????# #??????????????? | | ??????# # #?????# #??????????????? | | ??????# + #?????# +??????????????? | | ??????# """ # #?????? #??????????????? | | ??????# """ [[ # #?????? #??????????????? | | ??????? """ [ ## ##?????? #??????????????? | | ??????# ## #??????? ???????????????? | | ?????# ## #?????????? #?????????????? | | ???############### Y####### H +?????????????? | | ?? g xx % @ #?????????????? | | ?? g ag######; #?????????????? | | ?? #???????#####?????????????? | | ????####### ** #?????????????????????????? | | ??????????# ^ #?????????????????????????? | | ??????????# #?????????????????????????? | | ??????????+ == #?????????????????????????? | | ??????????# = #?????????????????????????? | | ??????????#] #?????????????????????????? | | ??????????# #?????????????????????????? | | ??????????##+#### #?????????????????????????? | | ??????????? ???# #?????????????????????????? | | ??????????? ????# #?????????????????????????? | | ????????????????# #?????????????????????????? | | ????????????????# #?????????????????????????? | | ????????????????# #?????????????????????????? | | ????????????????? #?????????????????????????? | | ????????????????? ??????????????????????????? | | ???????????????????????????????????????????????? | | ???????????????????????????????????????????????? | | ???????????????????????????????????????????????? | | ???????????????????????????????????????????????? | | ???????????????????????????????????????????????? | | ???????????????????????????????????????????????? | | ???????????????????????????????????????????????? | +----------------------------------------------------+ Best States ------------- Heat Dissipation 31 Energy Generation 19 Energy Capacity 250 Matter Stores 300 Matter Capacity 300 Sight Range 16 Terrain Scan Density 10 Armor Coverage 150 Propulsion Shielding 33 Evasion (%) 54 Recoil Reduction 2 Offensive Hacking 20 Item Schematics ----------------- None Robot Schematics ------------------ None Fabricated ------------ Nothing Alien Tech Used ----------------- None Achievements -------------- None Challenges ------------ None Game ------ Seed GunChainSpear Manual? 0 Play Time 00:27:50 Cumulative 2.5 hours Start 2024.04.02 @ 20:25:07 End 2024.04.02 @ 20:55:52 Sessions 1 Manual Loads 0 Difficulty Rogue Special Mode None Game No. 9 Rogue 9 Adventurer 0 Explorer 0 Win Type - Total 0 Types 0/0/0/0/0/0/0/0/0 Lore% 2 Gallery% 3 Achievement% 5 Wizard Run 0 Options --------- Layout 1 ASCII 0 Keyboard 0 Movement Mouse Keybinds 0 Fullscreen 1 Font 32/SmallcapsGlow Map View 50x35 Zoom Use 0% Tactical HUD 1 Map Filters NONE Filters NONE Steam 1 RUN: 2de04567-a1af-418c-a107-c3df5a1d1c50